[Event "E World Chess Championship 2023"]
[Site "Chess.com"]
[Date "2023.04.13"]
[Round "4"]
[White "Ding, Liren"]
[Black "Nepomniachtchi, Ian"]
[Result "1-0"]
[WhiteElo "2788"]
[BlackElo "2795"]
[ECO "A28"]
[EventDate "2023.??.??"]
[Annotator "rafael"]
[PlyCount "93"]
[Beauty "7219571596319"]
[EventType "match"]
[EventRounds "15"]
[EventCountry "FID"]
[TimeControl "7200+30"]

{[%evp 0,93,29,-16,-16,-16,-16,-13,-13,-13,-20,-15,5,1,1,-1,0,1,14,13,38,43,46,46,36,36,40,23,39,45,68,2,4,4,4,-5,4,-29,0,0,0,8,7,8,11,0,0,0,38,29,35,23,37,31,33,23,23,19,23,20,52,50,52,52,56,49,62,59,70,67,64,107,100,133,314,314,308,326,365,542,562,605,616,626,632,658,658,628,640,640,647,652,695,677,677,677]} 
1.c4 {After the unsuccessful result in an attempt to take the game to more exotic terrain in the second game, Ding chooses the English Open, one of his favorites.} 1...Nf6 2.Nc3 e5 3.Nf3 Nc6 4.e3 Bb4 5.Qc2 Bxc3 {This is the move considered most accurate by theory.} ( 5...O-O {is also possible, but now White has the option to play} 6.Nd5 ) 6.bxc3 $5 {[%c_effect c3;square;c3;type;Interesting;persistent;true] An interesting move. It seems exotic to capture with the pawn. After all what is the queen on c2 for $2 But the idea is now to play with e3-e4 and try to assert the strength of the center with the pair of bishops.} ( 6.Qxc3 Qe7 {Black plans to play d7-d5 quickly. There's a lot of theory here.} ) 6...d6 ( 6...e4 {is a critical move, preventing White from stabilizing the center.} 7.Ng5 Qe7 8.f3 exf3 9.Nxf3 {This position was discussed a few days ago in a very high-level game. White got the upper hand after} 9...O-O 10.d4 d5 11.cxd5 Nxd5 12.Kf2 $1 {[%c_effect f2;square;f2;type;GreatFind;persistent;true]} 12...Nf6 13.Bd3 Ng4+ 14.Ke2 {in Yakubboev-Sevian, Spring Chess Classic 2023.} ) 7.e4 O-O 8.Be2 ( 8.g3 {is the most played move. It avoids the plan that will be executed in the game, but it takes a little longer to finish the development. Black has several possible ideas, and the game remains balanced.} ) 8...Nh5 {A normal reaction, activating the knight. The Ne7-g6 plan is also interesting and has been tried in two recent games.} ( 8...Ne7 9.O-O Ng6 10.d4 b6 11.Re1 {Tabatabaei-Giri, Chessable Play In Match (rapid) 2023.} ) ( 8...h6 9.O-O Ne7 10.d4 Ng6 11.c5 Re8 12.cxd6 cxd6 {Tabatabaei-Caruana, PRO League (rapid) 2023.} ) 9.d4 Nf4 {A rare move that changes the character of the position. This type of change is very difficult to evaluate, but my computer is not very happy with this move, despite the high probability that it's still Nepomniachtchi's preparation. Ding, in turn, said at the press conference that he was out of preparation after this, which is curious since in the only game it was tried, his coach was playing White.} ( 9...Qf6 {is the popular move in correspondence games, which means it must be the best.} ) 10.Bxf4 exf4 {White has lost the advantage of the bishop pair, but now has an imposing pawn center.} 11.O-O $146 ( 11.h4 {This mysterious move was played some time ago by Ding's second, GM Rapport. He was young and impetuous back then. He knows that Ding's style is more classic. Anyway, he got an interesting position after} 11...Re8 12.Bd3 Bg4 13.Ng1 $1 {[%c_effect g1;square;g1;type;GreatFind;persistent;true]} 13...f5 14.Kf1 $1 {[%c_effect f1;square;f1;type;GreatFind;persistent;true]} 14...fxe4 15.Bxe4 {Rapport-Zaragatski, Germany 2012.} ) 11...Qf6 12.Rfe1 Re8 {A critical moment.} 13.Bd3 $6 {[%c_effect d3;square;d3;type;Inaccuracy;persistent;true] This move doesn't seem to me to be the most accurate. White has a few alternatives.} ( 13.h3 {seems to me to be the most natural. White avoids the bishop development to g4.} 13...Bd7 ( 13...Qg6 14.Kh2 {and the pawn on e4 cannot be captured.} 14...Rxe4 $4 {[%c_effect e4;square;e4;type;Blunder;persistent;true]} ( 14...Qxe4 $4 {[%c_effect e4;square;e4;type;Blunder;persistent;true]} 15.Bd3 ) 15.Bd3 {winning material.} ( 15.Nh4 {also wins.} ) ) 14.Bd3 ) ( 13.c5 $5 {[%c_effect c5;square;c5;type;Interesting;persistent;true] it is an immediate version of the sacrifice that will be played later.} 13...dxc5 14.e5 Qh6 15.Rad1 {With a complex position. White has compensation in the form of his moving center pawns.} ) 13...Bg4 $1 {[%c_effect g4;square;g4;type;GreatFind;persistent;true]} 14.Nd2 Na5 $6 {[%c_effect a5;square;a5;type;Inaccuracy;persistent;true] A natural plan in these structures and is normally played in the Nimzo-Indian Defense. The idea is to play b6 and then c5. Here, however, it's not the most accurate.} ( 14...f3 $6 {[%c_effect f3;square;f3;type;Inaccuracy;persistent;true] is too optimistic, as it only creates weaknesses after} 15.g3 ( 15.h3 Bxh3 16.Nxf3 {is also very good for White.} ) ) ( 14...Rad8 $1 {[%c_effect d8;square;d8;type;GreatFind;persistent;true] is the best plan, anticipating any central advance by White.} 15.h3 Bc8 {If the knight tries to go back to f3, then after} 16.Nf3 g5 $1 {[%c_effect g5;square;g5;type;GreatFind;persistent;true] Black is ready to start a kingside counterplay. Kh8-Rg8 can be played if needed.} ) 15.c5 $5 {[%c_effect c5;square;c5;type;Interesting;persistent;true] A brave decision, this is a long-term pawn sacrifice in order to get mobility for the central pawns. It's even more commendable if we consider that White has other safer (and maybe even better) possibilities.} ( 15.f3 Bd7 16.Nb3 Nxb3 17.axb3 {This is a natural sequence, but it seems that White's beautiful pawn structure does not offer a special advantage after} 17...a5 $1 {[%c_effect a5;square;a5;type;GreatFind;persistent;true] preventing the advance of the b-pawn.} ) ( 15.h3 {White can start with this move.} 15...Bh5 {This is the right square, since after} ( 15...Bd7 $6 {[%c_effect d7;square;d7;type;Inaccuracy;persistent;true]} 16.Nf3 $1 {[%c_effect f3;square;f3;type;GreatFind;persistent;true] The knight returns to the game, and White prepares e4-e5.} ) ) ( 15.Qa4 $5 {[%c_effect a4;square;a4;type;Interesting;persistent;true] Perhaps this is the most surgical move.} 15...b6 16.f3 Bh5 ( 16...Be6 {This move isn't as bad as it looks, as 17.d5 is not dangerous.} 17.Nb3 ( 17.d5 $6 {[%c_effect d5;square;d5;type;Inaccuracy;persistent;true]} 17...Qxc3 ) ( 17.e5 $5 {[%c_effect e5;square;e5;type;Interesting;persistent;true]} ) 17...Nxb3 18.axb3 {with some advantage for White.} ) 17.Nb3 $1 {[%c_effect b3;square;b3;type;GreatFind;persistent;true]} 17...Nxb3 18.axb3 {The queen can now try to invade the queenside. White's position looks better, but the game is complicated, for example:} 18...c5 19.Qc6 $1 {[%c_effect c6;square;c6;type;GreatFind;persistent;true]} 19...cxd4 20.Rxa7 $1 {[%c_effect a7;square;a7;type;GreatFind;persistent;true]} 20...Rad8 21.Qd5 Qh4 22.Rc1 dxc3 23.Bf1 {and the c3-pawn will fall with better structure for White.} ) 15...dxc5 16.e5 Qh6 17.d5 {The center pawn pair certainly commands respect, but Black is solid.} 17...Rad8 ( 17...b6 {is quite natural. Black can try to speed up the plan of doubling on e-file after} 18.c4 Re7 $5 {[%c_effect e7;square;e7;type;Interesting;persistent;true]} ) 18.c4 b6 19.h3 Bh5 {The right square, so the white knight cannot return to f3.} ( 19...Bc8 $6 {[%c_effect c8;square;c8;type;Inaccuracy;persistent;true]} 20.Nf3 ) 20.Be4 $5 {[%c_effect e4;square;e4;type;Interesting;persistent;true] An interesting plan: get the bishop to f3 in order to double rooks on the e-file.} 20...Re7 {It's not easy to find a plan for Black, so Nepomniachtchi decides to double on the e-file, a good decision.} ( 20...Rxe5 $2 {[%c_effect e5;square;e5;type;Mistake;persistent;true] loses to} 21.Bxh7+ Qxh7 22.Qxh7+ Kxh7 23.Rxe5 ) 21.Qc3 Rde8 22.Bf3 Nb7 23.Re2 f6 {This move is not forced, but it's interesting to bring the knight, although the pawn on e6 is unpleasant.} 24.e6 {Forced.} ( 24.Rae1 $2 {[%c_effect e1;square;e1;type;Mistake;persistent;true]} 24...fxe5 25.Rxe5 Qf6 {wins material.} ) 24...Nd6 25.Rae1 Nf5 ( 25...Bg6 $1 {[%c_effect g6;square;g6;type;GreatFind;persistent;true] is an interesting option, keeping the bishops. My impression is that White doesn't have a plan to break Black's position. To be honest, I'd rather be Black here, as I have a long-term plan (advance the pawns on the kingside despite the dangers). The computer evaluates the position as equal.} ) 26.Bxh5 Qxh5 27.Re4 Qh6 28.Qf3 Nd4 $2 {[%c_effect d4;square;d4;type;Mistake;persistent;true] That move is the only serious mistake of the game, and from now on the final result is never in doubt.} ( 28...g5 {is necessary.} 29.g4 $1 {[%c_effect g4;square;g4;type;GreatFind;persistent;true]} 29...Nd6 ( 29...Nd4 $2 {[%c_effect d4;square;d4;type;Mistake;persistent;true]} 30.Rxd4 $1 {[%c_effect d4;square;d4;type;GreatFind;persistent;true]} 30...cxd4 31.Nb3 {is an even better version of the game.} ) ( 29...Nh4 $2 {[%c_effect h4;square;h4;type;Mistake;persistent;true]} 30.Qd3 {and the knight is misplaced.} ) 30.R4e2 {White has enough compensation for the pawn, thanks to his formidable pawn on e6. But I don't really know what the plan would be to try to win in this position.} ) 29.Rxd4 $1 {[%c_effect d4;square;d4;type;GreatFind;persistent;true] Nepomniachtchi clearly underestimated the strength of this fine exchange sacrifice.} ( 29.Qd3 {Ding mentioned that he was planning this move initially until he realized that 29.Rxd4 works.} ) ( 29.Qxf4 Qxf4 30.Rxf4 c6 {with a good endgame for Black.} ) 29...cxd4 30.Nb3 {The knight captures the d4-pawn, and the position becomes a strategic massacre.} 30...g5 ( 30...c5 {This doesn't work for tactical reasons.} 31.d6 $1 {[%c_effect d6;square;d6;type;GreatFind;persistent;true]} 31...Rxe6 32.Rxe6 Rxe6 33.d7 {and the d-pawn decides the game.} 33...Rd6 34.Qa8+ Kf7 35.Qe8# ) 31.Nxd4 Qg6 {Trying to keep the knight from jumping to f5.} 32.g4 $1 {[%c_effect g4;square;g4;type;GreatFind;persistent;true] What a beautiful move to execute. Aesthetic and efficient. The knight secures its place on f5.} 32...fxg3 33.fxg3 h5 34.Nf5 {White's position is so beautiful that it makes you want to take a picture of it.} 34...Rh7 35.Qe4 Kh8 36.e7 Qf7 37.d6 {The pawns perform the final work.} 37...cxd6 38.Nxd6 Qg8 ( 38...Qxe7 39.Nxe8 {wins a piece.} ) 39.Nxe8 Qxe8 40.Qe6 Kg7 41.Rf1 Rh6 42.Rd1 f5 43.Qe5+ Kf7 44.Qxf5+ Rf6 45.Qh7+ Ke6 46.Qg7 Rg6 47.Qf8 {A magnificent victory for Ding, who showed the best version of his chess. The match is tied, and at this moment it's impossible to make a prediction about who will be the next world champion.} ( 47.Qf8 Qxe7 ( 47...Rg8 48.Rd8 ) 48.Re1+ ) 1-0

[Event "E World Chess Championship 2023"]
[Site "Chess.com"]
[Date "2023.04.24"]
[Round "11"]
[White "Nepomniachtchi, Ian"]
[Black "Ding, Liren"]
[Result "1/2-1/2"]
[WhiteElo "2795"]
[BlackElo "2788"]
[ECO "C84"]
[EventDate "2023.??.??"]
[Annotator "rafael"]
[PlyCount "77"]
[Beauty "6189584744456"]
[EventType "match"]
[EventRounds "15"]
[EventCountry "FID"]
[TimeControl "7200+30"]

{[%evp 0,77,25,16,10,25,17,16,31,-6,3,8,20,-2,36,30,12,0,30,29,32,31,32,33,33,30,14,25,26,17,8,-1,6,2,14,0,14,2,38,54,39,47,51,40,40,38,47,47,50,54,40,45,38,32,48,51,39,39,42,27,41,30,28,30,28,28,28,28,67,57,57,64,64,64,57,53,57,57,57,57]} 
1.e4 e5 2.Nf3 Nc6 3.Bb5 a6 4.Ba4 Nf6 5.O-O Be7 6.d3 b5 7.Bb3 d6 {Together with 8.a4 and 8.c3, this is one the main lines of this Ruy Lopez system.} 8.a3 Na5 {A known move, but much rarer than the most natural castling.} ( 8...O-O {This was played in a game by the same opponents in the Candidates Tournament in 2020, when Nepomniachtchi scored an important victory after} 9.Nc3 Na5 10.Ba2 Be6 11.b4 Nc6 12.Bg5 Bxa2 13.Rxa2 {Nepomniachtchi-Ding, Ekaterinburg 2020.} ) 9.Ba2 c5 10.Nc3 Be6 11.Bg5 {A solid and typical move. The plan is to capture the knight and gain control of the d5-square.} ( 11.Nh4 {Nepomniachtchi has played this move a few times before, one of them against Carlsen.} 11...O-O 12.Nf5 Bxf5 13.exf5 d5 14.Qf3 c4 {The game later ended in a draw in Nepomniachtchi-Carlsen, Skilling op (rapid) 2020.} ) 11...O-O 12.Bxf6 Bxf6 13.Nd5 g6 ( 13...Nc6 {is more popular.} ) 14.Qd2 Bg7 {A new move, but as usual in this match, it's never clear to me if Ding has the position prepared or if he's improvising on the board.} ( 14...Nc6 ) 15.Ng5 $1 {[%c_effect g5;square;g5;type;GreatFind;persistent;true] This is the problem. Now this unpleasant knight move is possible.} 15...c4 {Quite a risky move, unless it was prepared beforehand; as I wrote before, this is not clear to me.} ( 15...Nc6 {During the game I expected this.} 16.f4 {This looks like a scary move to meet, but the computer finds a good defense.} ( 16.c3 {is possible, but after} 16...Ne7 {Black will simplify the position.} ) 16...Ne7 $1 {[%c_effect e7;square;e7;type;GreatFind;persistent;true] and Black is fine since} ( 16...exf4 $6 {[%c_effect f4;square;f4;type;Inaccuracy;persistent;true]} 17.Nxe6 fxe6 18.Nxf4 ) ( 16...Bh6 17.h4 $1 {[%c_effect h4;square;h4;type;GreatFind;persistent;true] keeping the strong knight on g5.} ) 17.Nxe7+ Qxe7 18.Nxe6 fxe6 19.f5 gxf5 20.exf5 d5 {is not dangerous.} ) 16.Nxe6 fxe6 17.Ne3 {Black's position looks a bit shaky with some potential weaknesses.} 17...Bh6 18.Rad1 Rb8 {Anticipating an exchange on c4, as the rook can now capture on b2.} 19.dxc4 $6 {[%c_effect c4;square;c4;type;Inaccuracy;persistent;true] This move takes the game into a drawing line. Nepomniachtchi's decision is understandable, as each draw brings him closer to winning the match, but perhaps it was possible to press without too much risk with 19.Qe2.} ( 19.Qe2 $1 {[%c_effect e2;square;e2;type;GreatFind;persistent;true] A possible continuation is:} 19...Qc7 20.dxc4 Bxe3 21.Qxe3 Nxc4 ( 21...bxc4 $6 {[%c_effect c4;square;c4;type;Inaccuracy;persistent;true] is worse:} 22.b4 $1 {[%c_effect b4;square;b4;type;GreatFind;persistent;true]} 22...cxb3 23.cxb3 {followed by 24.b4, with a clear advantage.} ) 22.Bxc4 bxc4 23.b4 $1 {[%c_effect b4;square;b4;type;GreatFind;persistent;true]} 23...cxb3 24.cxb3 {White's pawn structure is better and there is an attacking plan on the kingside with h4-h5. It's possible to play for two results.} ) 19...Nxc4 20.Bxc4 bxc4 21.Qxd6 {Now a draw is inevitable.} ( 21.Qe2 {is the only chance to keep some fight on the board.} 21...Bxe3 22.Qxe3 Rxb2 23.Qc3 Rb6 ( 23...Rb5 24.Qxc4 d5 {This is the computer suggestion, but advancing this pawn and damaging the structure has its dangers. The machine is not so worried and evaluates the position as equal.} ) 24.Qxc4 Qc8 25.Qe2 {Followed by h4-h5 and trying some attack on the kingside.} ) 21...Qxd6 22.Rxd6 Bxe3 23.fxe3 Rxf1+ 24.Kxf1 Rxb2 25.Rxe6 Rxc2 26.Rxa6 Ra2 27.Rc6 Rxa3 28.Rxc4 Rxe3 29.Kf2 Ra3 30.Rc5 Ra2+ 31.Kf3 Ra3+ 32.Kg4 Ra2 33.Kh3 Re2 34.Rxe5 Kf7 $1 {[%c_effect f7;square;f7;type;GreatFind;persistent;true] White is unable to hold the extra pawn.} 35.Kg3 Kf6 36.Re8 Kf7 37.Re5 Kf6 38.Re8 Kf7 39.Re5 {Certainly the dullest game of the match. The players now have a rest day, and we will certainly have fireworks again in the final part of the duel, as Ding is forced to take risks.} 1/2-1/2